bitfinex/quotes_SOLUSD_20220102
["timestamp","ask_amount","ask_price","bid_price","bid_amount"]
[1641095410951,1.58614889,177.52,177.41,14.3618]
[1641095411856,1.58614889,177.52,177.41,13.8618]
[1641095412351,10.03774889,177.52,177.41,13.6018]
[1641095412556,10.29774889,177.52,177.4,8.452]
[1641095412952,1.58614889,177.51,177.4,8.452]
[1641095413358,1.58614889,177.51,177.4,8.952]
[1641095413555,1.58614889,177.51,177.4,8.452]
[1641095414158,1.58614889,177.51,177.4,9.212]
[1641095415061,1.58614889,177.53,177.4,9.212]
[1641095415858,1.58614889,177.53,177.41,6.78]
[1641095416059,1.58614889,177.53,177.47,8.4491]
[1641095416460,1.58614889,177.53,177.41,7.54]
[1641095416461,1.58614889,177.53,177.41,7.04]
[1641095416660,1.58614889,177.53,177.41,7.54]
[1641095416860,1.58614889,177.54,177.42,28.164]
[1641095417162,1.58614889,177.54,177.42,6.78]
[1641095417359,1.58614889,177.54,177.42,7.28]
[1641095417559,1.58614889,177.54,177.45,8.4501]
[1641095417962,1.58614889,177.54,177.45,8.9501]
[1641095418165,1.58614889,177.55,177.45,8.9501]
[1641095418366,1.58614889,177.55,177.45,8.4501]
[1641095419371,1.84614889,177.55,177.45,8.9501]
[1641095420698,10.03604889,177.56,177.45,9.2101]
[1641095420899,0.26,177.55,177.45,9.2101]
[1641095421100,1.84614889,177.55,177.45,9.2101]
[1641095421302,1.58614889,177.55,177.45,9.2101]
[1641095422505,10.03514889,177.57,177.45,9.2101]
[1641095422904,10.29514889,177.57,177.45,9.2101]
[1641095423103,1.84614889,177.57,177.45,9.2101]
[1641095423304,1.58614889,177.57,177.45,15.7631]
[1641095423604,1.58614889,177.56,177.45,23.8731]
[1641095424208,1.58614889,177.56,177.45,79.9131]
[1641095424404,1.58614889,177.58,177.45,23.8731]
[1641095425306,1.58614889,177.6,177.45,23.8731]
[1641095426204,551.43716465,177.61,177.45,23.8731]
[1641095426605,551.69716465,177.61,177.45,23.8731]
[1641095426806,551.69716465,177.61,177.45,17.3201]
[1641095427006,1.58614889,177.6,177.45,17.3201]
[1641095428406,550.11101576,177.61,177.45,17.3201]
[1641095428809,550.11101576,177.61,177.45,17.0601]
[1641095429210,552.19716465,177.61,177.45,17.0601]
[1641095429608,8.4494,177.57,177.45,8.9501]
[1641095429810,1.58614889,177.58,177.45,8.9501]
[1641095430010,0.26,177.57,177.45,9.2101]
[1641095430508,1.58614889,177.57,177.45,9.2101]
[1641095430711,8.4495,177.56,177.45,9.2101]
[1641095431310,1.58614889,177.58,177.45,73.3601]
[1641095431709,1.58614889,177.56,177.45,73.3601]
[1641095432212,1.58614889,177.61,177.51,64.4847]
[1641095432410,1.58614889,177.61,177.53,23.44045576]
[1641095432613,1.58614889,177.61,177.53,31.81045576]
[1641095432811,1.58614889,177.63,177.53,32.31045576]
[1641095433218,1.58614889,177.63,177.58,8.4436]
[1641095433413,1.58614889,177.63,177.58,17.0536]
[1641095433613,1.58614889,177.63,177.58,17.3136]
[1641095434114,1.58614889,177.64,177.58,17.3136]
[1641095434512,1.58614889,177.64,177.58,5.55850147]
[1641095434714,1.58614889,177.65,177.58,5.55850147]
[1641095435214,1.58614889,177.67,177.58,5.55850147]
[1641095435612,1.58614889,177.67,177.58,14.00210147]
[1641095437516,1.58614889,177.66,177.58,14.00210147]
[1641095438122,1.58614889,177.66,177.58,13.50210147]
[1641095438316,1.58614889,177.66,177.58,1.7462627]
[1641095438715,15.64980355,177.7,177.58,1.7462627]
[1641095438716,1.58614889,177.64,177.58,1.7462627]
[1641095438917,1.58614889,177.64,177.58,9.8562627]
[1641095439116,1.58614889,177.63,177.58,9.8562627]
[1641095440016,4.889e-05,177.63,177.59,56.04]
[1641095440221,4.889e-05,177.63,177.6,8.11]
[1641095440422,4.889e-05,177.63,177.61,11.47259997]
[1641095440619,4.889e-05,177.63,177.61,11.73259997]
[1641095440820,13.34195405,177.7,177.61,12.23259997]
[1641095442222,13.34195405,177.7,177.61,11.97259997]
[1641095442624,15.90980355,177.7,177.61,11.97259997]
[1641095442925,24.35260355,177.7,177.61,11.97259997]
[1641095443122,24.35260355,177.7,177.61,3.53219997]
[1641095443322,8.71087495,177.69,177.61,3.03219997]
[1641095443525,15.72087495,177.69,177.61,3.03219997]
[1641095443724,16.22087495,177.69,177.61,3.03219997]
[1641095444024,2.3078495,177.66,177.61,3.03219997]
[1641095444324,10.7526495,177.66,177.61,3.03219997]
[1641095444529,2.3078495,177.66,177.53,19.42102288]
[1641095444728,2.3078495,177.66,177.53,20.18102288]
[1641095445130,2.3078495,177.67,177.53,20.18102288]
[1641095445738,2.3078495,177.67,177.54,28.1455]
[1641095445931,2.3078495,177.67,177.54,28.6455]
[1641095446129,8.71087495,177.68,177.54,28.9055]
[1641095447056,2.3078495,177.67,177.54,28.9055]
[1641095447655,2.3078495,177.67,177.59,8.4437]
[1641095448059,2.3078495,177.67,177.59,8.7037]
[1641095448659,17.15584594,177.67,177.59,0.26]
[1641095449063,10.7520495,177.67,177.58,8.7042]
[1641095449659,10.7520495,177.67,177.58,9.2042]
[1641095449863,2.3078495,177.67,177.58,9.2042]
[1641095450262,10.7515495,177.69,177.58,9.2042]
[1641095450665,6.40321104,177.68,177.58,9.2042]
[1641095451362,6.40321104,177.68,177.58,15.9542]
[1641095451761,8.4437,177.69,177.58,15.9542]
[1641095453664,8.4437,177.69,177.58,15.4542]
[1641095453864,8.71136292,177.68,177.58,15.4542]
[1641095454064,8.4446,177.67,177.58,15.4542]
[1641095454462,8.4446,177.67,177.58,15.9542]
[1641095454663,8.4446,177.67,177.58,15.4542]
[1641095455264,10.7516495,177.68,177.58,15.9542]
[1641095455464,2.3078495,177.67,177.58,15.9542]
[1641095456065,8.4438,177.68,177.58,15.4542]
[1641095462570,8.4433,177.69,177.58,15.4542]
[1641095463877,420.62663438,177.7,177.58,71.4942]
[1641095465977,12.34195405,177.7,177.58,71.4942]
[1641095469085,12.34195405,177.7,177.58,71.2342]
[1641095469287,20.78475405,177.7,177.58,71.2342]
[1641095469892,12.34195405,177.7,177.58,71.2342]
[1641095470294,12.34195405,177.7,177.58,15.1942]
[1641095471395,12.34195405,177.7,177.58,15.4542]
[1641095473414,12.34195405,177.7,177.58,15.1942]
[1641095475019,12.34195405,177.7,177.58,15.4542]
[1641095476217,2.3078495,177.68,177.58,15.4542]
[1641095477920,2.3078495,177.68,177.58,15.1942]
[1641095478118,2.3078495,177.68,177.58,14.6942]
[1641095478721,2.3078495,177.66,177.58,15.1942]
[1641095479923,2.3078495,177.66,177.58,15.4542]
[1641095481524,2.3078495,177.67,177.58,15.4542]
[1641095482927,2.3078495,177.68,177.58,15.4542]
[1641095483326,2.3078495,177.68,177.59,28.65478789]
[1641095483525,2.3078495,177.68,177.63,8.4427]
[1641095484128,8.71042777,177.69,177.63,8.4427]
[1641095484627,2.3078495,177.67,177.63,8.4427]
[1641095485628,2.3078495,177.67,177.63,8.7027]
[1641095486128,2.3078495,177.67,177.63,8.4427]
[1641095487929,2.3078495,177.67,177.63,8.9427]
[1641095488338,2.3078495,177.67,177.63,8.4427]
[1641095488739,2.3078495,177.68,177.63,8.4427]
[1641095491839,2.3078495,177.68,177.63,9.2027]
[1641095495063,8.71042777,177.69,177.63,9.2027]
[1641095496865,6.40257827,177.69,177.63,9.2027]
[1641095497068,14.64980355,177.7,177.63,9.2027]
[1641095498468,6.40180874,177.69,177.63,9.2027]
[1641095498867,8.70965824,177.69,177.63,9.2027]
[1641095501679,6.40180874,177.69,177.63,9.2027]
[1641095504483,8.70965824,177.69,177.63,9.2027]
[1641095507286,8.70965824,177.69,177.64,24.31299649]
[1641095507486,6.40180874,177.69,177.66,8.4408]
[1641095507885,6.40180874,177.69,177.66,9.2008]
[1641095508288,12.34195405,177.7,177.66,9.2008]
[1641095510591,12.34195405,177.7,177.66,8.9408]
[1641095512893,12.34195405,177.7,177.66,9.2008]
[1641095518423,12.34195405,177.7,177.67,28.25831346]
[1641095518629,12.34195405,177.7,177.68,8.4402]
[1641095519028,12.34195405,177.7,177.68,9.2002]
[1641095521433,12.34195405,177.7,177.68,8.9402]
[1641095523337,12.34195405,177.7,177.68,9.2002]
[1641095526340,12.34195405,177.7,177.68,8.9402]
[1641095526740,12.34195405,177.7,177.68,8.4402]
[1641095527741,6.06439994,177.69,177.68,8.4402]
[1641095530345,6.06439994,177.69,177.68,8.7002]
[1641095530744,12.34195405,177.7,177.68,8.7002]
[1641095531146,12.34195405,177.7,177.68,9.2002]
[1641095534851,11.84195405,177.7,177.68,9.2002]
[1641095536453,11.84195405,177.7,177.68,0.26]
[1641095536853,11.84195405,177.7,177.67,9.2014]
[1641095537480,11.34195405,177.7,177.67,8.7014]
[1641095537683,11.34195405,177.7,177.67,9.2014]
[1641095539980,3.03219997,177.69,177.67,9.2014]
[1641095540381,11.34195405,177.7,177.67,9.2014]
[1641095543191,6.06439994,177.69,177.67,9.2014]
[1641095544588,6.06439994,177.69,177.67,8.7014]
[1641095544788,6.06439994,177.69,177.67,9.2014]
[1641095545190,11.34195405,177.7,177.67,9.2014]
[1641095545591,11.34195405,177.7,177.67,8.7014]
[1641095546193,11.34195405,177.7,177.67,9.2014]
[1641095546791,11.34195405,177.7,177.67,14.2004]
[1641095553797,11.34195405,177.7,177.67,9.2014]
[1641095560236,11.34195405,177.7,177.67,8.9414]
[1641095561637,11.34195405,177.7,177.67,9.2014]
[1641095578556,6.06439994,177.69,177.67,9.2014]
[1641095578756,11.34195405,177.7,177.67,9.2014]
[1641095595400,11.34195405,177.7,177.68,26.85554605]
[1641095595600,11.34195405,177.7,177.69,8.4391]
[1641095596004,11.34195405,177.7,177.69,9.1991]
[1641095604035,445.04038572,177.8,177.69,10.62579368]
[1641095604234,443.78858572,177.8,177.69,10.62579368]
[1641095604837,442.18875277,177.8,177.69,10.62579368]
[1641095605039,73.5686,177.81,177.69,10.62579368]
[1641095605445,79.4848,177.82,177.69,10.62579368]
[1641095608140,79.4848,177.82,177.76,8.4364]
[1641095608338,1.59983295,177.83,177.76,8.9364]
[1641095608541,1.59983295,177.83,177.76,9.1964]
[1641095608740,1.59983295,177.84,177.76,9.1964]
[1641095609741,10.03683295,177.84,177.76,9.1964]
[1641095609942,18.14683295,177.84,177.76,0.5]
[1641095610145,18.90683295,177.84,177.68,8.11]
[1641095610341,18.90683295,177.84,177.68,8.61]
[1641095610742,1.59983295,177.81,177.68,8.61]
[1641095611144,8.4392,177.79,177.72,8.439]
[1641095611544,8.6992,177.79,177.72,9.199]
[1641095611744,8.4392,177.79,177.72,9.199]
[1641095612244,8.6992,177.79,177.72,9.199]
[1641095612444,8.4392,177.79,177.72,8.939]
[1641095613245,7.9392,177.79,177.72,8.439]
[1641095613446,7.9392,177.79,177.72,8.939]
[1641095613646,9.53903295,177.79,177.72,9.199]
[1641095615047,9.79903295,177.79,177.72,9.199]
[1641095615247,9.79903295,177.79,177.72,0.26]
[1641095615248,1.59983295,177.78,177.72,0.26]
[1641095615650,1.59983295,177.78,177.71,9.1995]
[1641095618252,1.59983295,177.79,177.71,9.1995]
[1641095623656,10.03903295,177.79,177.71,8.9395]
[1641095623856,10.79903295,177.79,177.71,8.9395]
[1641095624061,10.29903295,177.79,177.71,0.5]
[1641095624457,1.59983295,177.77,177.7,8.94]
[1641095625056,1.59983295,177.77,177.7,9.2]
[1641095625557,1.59983295,177.79,177.7,9.2]
[1641095626558,10.03913295,177.79,177.7,9.2]
[1641095627159,1.59983295,177.78,177.7,9.2]
[1641095631169,18.14843295,177.8,177.7,9.2]
[1641095631868,18.40843295,177.8,177.7,9.2]
[1641095632368,1.59983295,177.79,177.7,8.94]
[1641095632572,10.03923295,177.79,177.7,8.94]
[1641095633168,1.59983295,177.78,177.7,8.94]
[1641095635888,10.03933295,177.78,177.7,8.94]
[1641095643698,8.4395,177.78,177.7,8.94]
[1641095644200,10.03933295,177.78,177.7,8.94]
[1641095646402,10.03933295,177.78,177.7,8.44]
[1641095647702,10.03933295,177.78,177.7,8.94]
[1641095651414,10.53933295,177.78,177.7,8.94]
[1641095652909,1.59983295,177.77,177.7,8.94]
[1641095653112,10.03973295,177.77,177.7,8.94]
[1641095653508,8.4399,177.77,177.7,8.94]
[1641095661618,8.9399,177.77,177.7,8.94]
[1641095662016,10.1569,177.77,177.7,8.94]
[1641095662618,10.1569,177.77,177.68,8.4406]
[1641095662822,18.2669,177.77,177.64,29.56129368]
[1641095663021,18.2669,177.77,177.68,0.5]
[1641095663219,1.59983295,177.76,177.68,0.5]
[1641095663417,8.4423,177.73,177.63,78.6817]
[1641095663620,8.4423,177.73,177.66,8.4419]
[1641095663818,8.9423,177.73,177.66,8.4419]
[1641095664018,8.9423,177.73,177.66,8.9419]
[1641095666925,10.1925,177.73,177.66,8.9419]
[1641095668651,9.6925,177.73,177.66,8.9419]
[1641095668850,10.1925,177.73,177.66,8.9419]
[1641095673856,10.1925,177.73,177.66,8.4419]
[1641095675459,1.7502,177.73,177.66,8.4419]
[1641095679165,10.1921,177.73,177.66,8.4419]
[1641095691381,1.2502,177.73,177.66,8.4419]
[1641095692483,1.2502,177.73,177.66,8.7019]
[1641095695309,9.692,177.73,177.66,8.7019]
[1641095695708,9.692,177.73,177.66,8.4419]
[1641095697107,9.692,177.73,177.66,8.7019]
[1641095697108,9.952,177.73,177.66,8.7019]
[1641095699109,9.692,177.73,177.66,8.7019]
[1641095702910,9.952,177.73,177.66,8.7019]
[1641095705015,18.062,177.73,177.66,8.7019]
[1641095713555,9.952,177.73,177.66,8.7019]
[1641095717762,8.11,177.72,177.62,28.1389]
[1641095717960,8.87,177.72,177.54,154.8403]
[1641095718162,2.93873747,177.66,177.48,79.3589]
[1641095718462,2.93873747,177.66,177.47,78.2469]
[1641095718463,8.11,177.65,177.47,79.5135]
[1641095718663,9.53669368,177.65,177.47,79.5135]
[1641095718865,1.42669368,177.64,177.47,110.08515634]
[1641095719062,1.42669368,177.64,177.47,31.83825634]
[1641095719063,8.4503,177.55,177.47,31.83825634]
[1641095719263,8.4503,177.55,177.47,30.57165634]
[1641095720464,8.4503,177.55,177.47,31.07165634]
[1641095721471,8.4503,177.55,177.47,31.33165634]
[1641095721668,8.4503,177.55,177.47,31.07165634]
[1641095722866,8.9503,177.55,177.47,31.07165634]
[1641095723066,17.0603,177.55,177.47,31.07165634]
[1641095723266,16.5603,177.55,177.47,31.07165634]
[1641095724070,16.5603,177.55,177.47,31.33165634]
[1641095724969,16.5603,177.55,177.45,84.3346]
[1641095725167,16.5603,177.55,177.45,84.8346]
[1641095725768,16.5603,177.55,177.46,27.65871285]
[1641095725968,16.5603,177.55,177.46,28.41871285]
[1641095727770,16.5603,177.55,177.46,36.86901285]
[1641095728973,16.5603,177.55,177.46,36.36901285]
[1641095730373,8.4503,177.55,177.46,35.86901285]
[1641095734075,16.5594,177.57,177.46,35.86901285]
[1641095734478,16.8194,177.57,177.46,35.86901285]
[1641095737983,101.32,177.63,177.46,35.86901285]
[1641095737984,563.59992648,177.65,177.46,35.86901285]
[1641095738182,75.3974,177.64,177.47,82.3485]
[1641095738380,75.3974,177.64,177.55,8.4449]
[1641095738580,75.3974,177.64,177.55,36.06922226]
[1641095738783,75.3974,177.64,177.55,36.56922226]
[1641095739513,75.6574,177.64,177.55,36.56922226]
[1641095739883,77.25723295,177.64,177.55,36.56922226]
[1641095740785,75.6574,177.64,177.55,36.56922226]
[1641095747992,75.6574,177.64,177.55,9.2049]
[1641095748392,84.103,177.64,177.55,9.2049]
[1641095749596,8.11,177.63,177.54,8.4466]
[1641095749899,8.61,177.63,177.48,77.7935]
[1641095750092,1.42669368,177.62,177.48,77.7935]
[1641095750291,8.11,177.61,177.48,77.7935]
[1641095750493,8.87,177.61,177.47,102.3965]
[1641095750693,1.42669368,177.6,177.5,8.4483]
[1641095750894,8.11,177.59,177.5,8.4483]
[1641095751093,8.37,177.59,177.5,8.4483]
[1641095751296,8.87,177.59,177.5,8.4483]
[1641095751694,8.4485,177.58,177.5,8.4483]
[1641095752095,8.7085,177.58,177.5,8.4483]
[1641095752500,0.26,177.58,177.5,8.4483]
[1641095752698,0.26,177.58,177.5,8.9483]
[1641095752898,8.37,177.59,177.5,8.4483]
[1641095753699,16.818,177.59,177.5,8.4483]
[1641095754300,16.818,177.59,177.5,38.39225996]
[1641095754527,8.37,177.59,177.5,39.15225996]
[1641095762039,16.8181,177.59,177.5,39.15225996]
[1641095762239,17.3181,177.59,177.5,0.26]
[1641095762440,18.74479368,177.59,177.5,0.26]
[1641095762645,1.59983295,177.57,177.48,8.449]
[1641095762840,2.09983295,177.57,177.48,8.709]
[1641095763040,1.85983295,177.57,177.48,9.209]
[1641095763238,1.85983295,177.57,177.48,39.7202825]
[1641095764641,8.4494,177.56,177.48,39.7202825]
[1641095764842,8.4494,177.56,177.48,40.2202825]
[1641095765040,8.7094,177.56,177.48,40.2202825]
[1641095765242,8.7094,177.56,177.48,39.7202825]
[1641095766242,8.7094,177.56,177.48,40.2202825]
[1641095767344,0.26,177.56,177.48,40.2202825]
[1641095767544,18.41873295,177.57,177.48,40.2202825]
[1641095768147,16.8189,177.57,177.48,40.2202825]
[1641095768952,18.91873295,177.57,177.48,39.7202825]
[1641095769651,10.04943295,177.56,177.48,31.2712825]
[1641095770052,10.30943295,177.56,177.48,31.2712825]
[1641095770652,8.7096,177.56,177.48,31.2712825]
[1641095770854,8.7096,177.56,177.48,40.2204825]
[1641095772058,8.7096,177.56,177.48,39.7204825]
[1641095773676,8.7096,177.56,177.48,31.2712825]
[1641095776478,8.7096,177.56,177.48,31.7712825]
[1641095776978,8.7096,177.56,177.48,31.2712825]
[1641095777178,8.7096,177.56,177.48,31.7712825]
[1641095780984,8.7096,177.56,177.48,40.2204825]
[1641095782386,8.7096,177.56,177.48,39.9604825]
[1641095783787,8.7096,177.56,177.48,40.2204825]
[1641095785390,8.7096,177.56,177.48,39.7204825]
[1641095786593,8.7096,177.56,177.48,39.4604825]
[1641095786994,10.30943295,177.56,177.48,39.4604825]
[1641095787392,10.30943295,177.56,177.48,31.0112825]
[1641095787795,1.85983295,177.56,177.48,31.0112825]
[1641095788393,1.85983295,177.56,177.48,39.4603825]
[1641095788595,1.85983295,177.56,177.48,39.7203825]
[1641095789795,10.30913295,177.56,177.48,39.7203825]
[1641095791898,10.30913295,177.56,177.48,31.2712825]
[1641095797408,10.30913295,177.56,177.48,0.76]
[1641095797608,10.30913295,177.56,177.47,9.2096]
[1641095798510,10.30913295,177.56,177.47,36.16125119]
[1641095800808,18.41913295,177.56,177.47,36.16125119]
[1641095801009,10.30913295,177.56,177.47,36.16125119]
[1641095801610,1.59983295,177.55,177.47,36.16125119]
[1641095801810,10.04963295,177.55,177.47,36.16125119]
[1641095802010,10.30963295,177.55,177.47,36.16125119]
[1641095802217,10.30963295,177.55,177.47,35.90125119]
[1641095802515,1.59983295,177.55,177.47,35.90125119]
[1641095802720,1.59983295,177.56,177.47,35.90125119]
[1641095803516,1.59983295,177.57,177.47,36.16125119]
[1641095804120,10.04893295,177.57,177.47,36.16125119]
[1641095804321,8.4491,177.57,177.47,36.16125119]
[1641095810850,8.4491,177.57,177.47,27.45165119]
[1641095811048,8.7091,177.57,177.47,0.5]
[1641095811448,8.7091,177.57,177.46,1.8047]
[1641095811651,9.2091,177.57,177.46,1.3047]
[1641095811850,9.2091,177.57,177.46,1.8047]
[1641095812050,10.4689,177.57,177.46,1.8047]
[1641095812452,10.4689,177.57,177.46,2.0647]
[1641095812650,12.06873295,177.57,177.46,2.0647]
[1641095813651,10.4689,177.57,177.46,2.0647]
[1641095815555,10.2089,177.57,177.46,2.0647]
[1641095816959,10.4689,177.57,177.46,2.0647]
[1641095817558,10.2089,177.57,177.46,2.0647]
[1641095819062,10.4689,177.57,177.46,2.0647]
[1641095819262,8.4507,177.54,177.46,2.0647]
[1641095820463,8.4507,177.54,177.46,10.5151]
[1641095820881,8.4499,177.55,177.46,10.5151]
[1641095824072,8.7091,177.57,177.46,10.5151]
[1641095824269,8.4491,177.57,177.46,10.5151]
[1641095824470,8.7091,177.57,177.46,10.5151]
[1641095825795,16.8191,177.57,177.46,10.5151]
[1641095826596,8.7091,177.57,177.46,10.5151]
[1641095827597,16.8191,177.57,177.46,10.5151]
[1641095828198,8.11,177.56,177.46,10.5151]
[1641095828799,16.8191,177.57,177.46,10.5151]
[1641095830203,8.7091,177.57,177.46,10.5151]
[1641095830900,9.9213,177.57,177.46,10.5151]
[1641095831302,18.0313,177.57,177.46,10.5151]
[1641095831701,18.0313,177.57,177.46,10.2551]
[1641095831899,9.9213,177.57,177.46,10.2551]
[1641095833105,9.9213,177.57,177.46,10.5151]
[1641095833302,9.9213,177.57,177.46,10.0151]
[1641095838507,9.6613,177.57,177.46,10.0151]
[1641095840007,9.9213,177.57,177.46,10.0151]
[1641095843915,11.52113295,177.57,177.46,10.0151]
[1641095844716,11.52113295,177.57,177.47,29.24440616]
[1641095844919,11.52113295,177.57,177.49,8.4488]
[1641095845114,11.52113295,177.57,177.49,8.7088]
[1641095845314,11.52113295,177.57,177.49,9.2088]
[1641095845715,11.26113295,177.57,177.49,9.2088]
[1641095846713,9.6613,177.57,177.49,9.2088]
[1641095847716,9.9213,177.57,177.49,8.9488]
[1641095847916,9.9213,177.57,177.49,8.4488]
[1641095848519,9.9213,177.57,177.49,8.7088]
[1641095848717,9.9213,177.57,177.49,9.2088]
[1641095849018,11.26113295,177.57,177.49,9.2088]
[1641095850220,11.26113295,177.57,177.49,8.9488]
[1641095850416,11.52113295,177.57,177.49,8.4488]
[1641095850620,11.52113295,177.57,177.48,9.6799]
[1641095850818,11.52113295,177.57,177.48,10.4399]
[1641095854621,9.9213,177.57,177.48,10.4399]
[1641095856824,9.6613,177.57,177.48,10.4399]
[1641095858226,9.9213,177.57,177.48,10.4399]
[1641095861555,7.9213,177.57,177.48,10.4399]
[1641095863356,7.6613,177.57,177.48,10.4399]
[1641095863655,7.6613,177.57,177.48,11.86659368]
[1641095867866,6.4491,177.57,177.48,11.86659368]
[1641095868069,1.59983295,177.59,177.57,1.2122]
[1641095868267,2.3078495,177.63,177.57,1.2122]
[1641095868467,431.09373552,177.65,177.58,1.42669368]
[1641095868770,431.09373552,177.65,177.58,6.48869368]
[1641095868968,431.09373552,177.65,177.58,7.24869368]
[1641095870169,1.2552,177.69,177.58,7.24869368]
[1641095870369,1.5152,177.69,177.58,7.24869368]
[1641095870572,1.5152,177.69,177.6,8.4446]
[1641095870774,1.5152,177.69,177.6,32.27673641]
[1641095870972,1.5152,177.69,177.6,33.03673641]
[1641095872470,1.2552,177.69,177.6,33.03673641]
[1641095876778,149.0716,177.71,177.61,8.11]
[1641095876978,149.0716,177.71,177.63,8.4432]
[1641095877177,149.0716,177.71,177.64,28.43591539]
[1641095877379,149.0716,177.71,177.64,28.93591539]
[1641095877578,149.0716,177.71,177.64,29.19591539]
[1641095877778,75.1426,177.71,177.64,29.19591539]
[1641095879178,75.1426,177.71,177.64,0.76]
[1641095879378,75.1426,177.71,177.64,0.26]
[1641095879583,75.1426,177.71,177.64,8.4428]
[1641095879781,75.1426,177.71,177.64,9.2028]
[1641095880184,75.1426,177.71,177.64,0.5]
[1641095880382,75.1426,177.71,177.61,11.29869368]
[1641095881585,75.1426,177.71,177.61,19.74259368]
[1641095881985,75.4026,177.71,177.61,10.2059]
[1641095882184,75.4026,177.71,177.61,8.9439]
[1641095883386,75.4026,177.71,177.61,9.2039]
[1641095883584,83.8471,177.71,177.61,9.2039]
[1641095884983,86.1549495,177.71,177.61,9.2039]
[1641095889294,86.1549495,177.71,177.61,0.76]
[1641095889494,86.1549495,177.71,177.6,44.15985462]
[1641095890096,86.1549495,177.71,177.6,17.3147]
[1641095890995,1.2767,177.7,177.6,17.3147]
[1641095891396,1.5367,177.7,177.6,17.3147]
[1641095893918,1.5367,177.7,177.6,17.0547]
[1641095894520,1.5367,177.7,177.6,8.9447]
[1641095894719,1.5367,177.7,177.6,17.0547]
[1641095895421,1.5367,177.7,177.6,17.3147]
[1641095896821,1.5367,177.7,177.61,8.11]
[1641095897021,1.5367,177.7,177.61,16.8141]
[1641095897225,1.5367,177.7,177.61,17.3141]
[1641095897422,1.5367,177.7,177.61,9.2041]
[1641095899026,1.5367,177.7,177.62,8.11]
[1641095899426,1.5367,177.7,177.62,8.87]
[1641095899827,1.5367,177.7,177.62,8.37]
[1641095900026,1.5367,177.7,177.62,0.26]
[1641095900229,1.5367,177.7,177.61,40.44791479]
[1641095900427,1.5367,177.7,177.61,40.94791479]
[1641095901530,1.5367,177.7,177.61,9.2041]
[1641095906940,1.5367,177.7,177.61,0.76]
[1641095907145,2.0367,177.7,177.61,0.76]
[1641095907337,1.5367,177.7,177.6,8.4447]
[1641095907536,2.0367,177.7,177.6,8.4447]
[1641095907736,2.0367,177.7,177.59,1.2785]
[1641095907935,2.0367,177.7,177.59,1.7785]
[1641095908139,8.71001242,177.69,177.59,1.7785]
[1641095908537,8.97001242,177.69,177.59,1.7785]
[1641095908737,9.47001242,177.69,177.59,10.2237]
[1641095909638,1.2813,177.68,177.59,10.2237]
[1641095910039,1.5413,177.68,177.59,10.2237]
[1641095910738,1.2813,177.68,177.59,10.2237]
[1641095910941,1.2813,177.68,177.59,10.4837]
[1641095912171,1.5413,177.68,177.59,10.4837]
[1641095932487,1.5413,177.68,177.59,9.4837]
[1641095932684,1.5413,177.68,177.59,9.2052]
[1641095933285,1.5413,177.68,177.59,10.4829]
[1641095948199,1.2813,177.68,177.59,17.1079]
[1641095948403,1.2813,177.68,177.6,8.11]
[1641095948601,1.2813,177.68,177.63,8.4432]
[1641095948800,3.5753495,177.73,177.63,14.3112]
[1641095949000,1.2929,177.72,177.63,15.0712]
[1641095950102,1.5529,177.72,177.63,15.0712]
[1641095951707,1.2929,177.72,177.63,15.0712]
[1641095952705,1.2929,177.72,177.63,16.3195]
[1641095954737,1.5529,177.72,177.63,16.3195]
[1641095955338,1.2929,177.72,177.63,16.3195]
[1641095962851,74.488,177.75,177.63,16.3195]
[1641095963553,1.2972,177.74,177.63,16.3195]
[1641095964451,1.2972,177.74,177.63,10.4515]
[1641095969259,1.2972,177.74,177.63,10.1915]
[1641095969559,1.5572,177.74,177.63,8.4432]
[1641095969759,2.0572,177.74,177.63,8.4432]
[1641095970361,10.1672,177.74,177.63,8.4432]
[1641095970561,20.9178495,177.74,177.63,8.4432]
[1641095970761,20.9178495,177.74,177.63,8.9432]